[Event "GrandPrix_30.05"]
[Site "Chess.com"]
[Date "2020.05.30"]
[Round "5"]
[White "Bengalas"]
[Black "RitvarsReimanis"]
[Result "0-1"]
[WhiteElo "2197"]
[BlackElo "2162"]
[TimeControl "600+2"]
[EndTime "10:28:10 PDT"]
[Termination "RitvarsReimanis won by resignation"]

1. d4 {[%clk 0:10:01.9]} 1... Nf6 {[%clk 0:09:59.9]} 2. c4 {[%clk 0:10:01.8]}
2... e6 {[%clk 0:10:00.3]} 3. Nc3 {[%clk 0:10:01.1]} 3... d5 {[%clk 0:10:01.1]}
4. cxd5 {[%clk 0:10:01.6]} 4... exd5 {[%clk 0:10:01.8]} 5. Bg5 {[%clk
0:10:02.1]} 5... c6 {[%clk 0:10:03.2]} 6. e3 {[%clk 0:10:02.7]} 6... Be7 {[%clk
0:10:04.7]} 7. Qc2 {[%clk 0:10:02.8]} 7... Nbd7 {[%clk 0:10:06.2]} 8. Bd3 {[%clk
0:10:03.3]} 8... O-O {[%clk 0:10:07.6]} 9. Nge2 {[%clk 0:10:03.6]} 9... Re8
{[%clk 0:10:09.1]} 10. O-O-O {[%clk 0:10:04]} 10... Nf8 {[%clk 0:10:10]} 11. Kb1
{[%clk 0:10:04.2]} 11... Ng6 {[%clk 0:10:09.9]} 12. h3 {[%clk 0:09:00.9]} 12...
Ne4 {[%clk 0:10:09.5]} 13. Bxe7 {[%clk 0:08:48]} 13... Qxe7 {[%clk 0:10:11.4]}
14. Bxe4 {[%clk 0:08:39]} 14... dxe4 {[%clk 0:10:10.8]} 15. g4 {[%clk
0:08:17.6]} 15... Be6 {[%clk 0:09:53.3]} 16. Qxe4 {[%clk 0:07:05.8]} 16... Bxa2+
{[%clk 0:09:38.8]} 17. Kxa2 {[%clk 0:07:04.4]} 17... Qxe4 {[%clk 0:09:38.5]} 18.
Nxe4 {[%clk 0:07:05.4]} 18... Rxe4 {[%clk 0:09:40.4]} 19. Ng3 {[%clk 0:06:33.2]}
19... Re6 {[%clk 0:09:37.2]} 20. Rc1 {[%clk 0:06:11]} 20... Rae8 {[%clk
0:09:25.7]} 21. Kb3 {[%clk 0:05:40.5]} 21... Rf6 {[%clk 0:08:59]} 22. Rhf1
{[%clk 0:05:34.5]} 22... Rf3 {[%clk 0:08:55.6]} 23. Rc3 {[%clk 0:04:50.6]} 23...
Nh4 {[%clk 0:08:39.1]} 24. Kc2 {[%clk 0:03:34.7]} 24... g6 {[%clk 0:08:14]} 25.
e4 {[%clk 0:02:48.3]} 25... Rd8 {[%clk 0:07:39.1]} 26. Ne2 {[%clk 0:02:16.2]}
26... Kf8 {[%clk 0:06:26.2]} 27. Kd2 {[%clk 0:01:38.6]} 27... Re8 {[%clk
0:04:56.9]} 28. Rxf3 {[%clk 0:01:10.5]} 28... Nxf3+ {[%clk 0:04:58.8]} 29. Ke3
{[%clk 0:01:11.9]} 29... Ng5 {[%clk 0:04:54.4]} 30. f3 {[%clk 0:00:53.7]} 30...
f6 {[%clk 0:02:11.7]} 31. h4 {[%clk 0:00:48.3]} 31... Nf7 {[%clk 0:02:13]} 32.
Ra1 {[%clk 0:00:44.7]} 32... a6 {[%clk 0:02:13.7]} 33. Nc3 {[%clk 0:00:31.8]}
33... Nd6 {[%clk 0:02:14.3]} 34. Kd3 {[%clk 0:00:30.8]} 34... Ke7 {[%clk
0:02:11.6]} 35. Rh1 {[%clk 0:00:12.7]} 35... Rd8 {[%clk 0:02:09.9]} 36. g5
{[%clk 0:00:11.1]} 36... Nf7 {[%clk 0:02:03.2]} 37. gxf6+ {[%clk 0:00:10.9]}
37... Kxf6 {[%clk 0:02:05.1]} 38. Ke3 {[%clk 0:00:10.4]} 38... Ke6 {[%clk
0:01:54.4]} 39. Rg1 {[%clk 0:00:09.9]} 39... Nd6 {[%clk 0:01:53.4]} 40. b3
{[%clk 0:00:10.3]} 40... Ne8 {[%clk 0:01:46.4]} 41. Na4 {[%clk 0:00:10]} 41...
Kf7 {[%clk 0:01:39.1]} 42. Nc5 {[%clk 0:00:07.9]} 42... Nd6 {[%clk 0:01:37.3]}
43. Rd1 {[%clk 0:00:05.1]} 43... Ra8 {[%clk 0:01:34]} 44. e5 {[%clk 0:00:03.9]}
44... Nf5+ {[%clk 0:01:32.6]} 45. Ke4 {[%clk 0:00:04.7]} 45... b6 {[%clk
0:01:34.5]} 46. Na4 {[%clk 0:00:03]} 46... b5 {[%clk 0:01:32]} 47. Nc5 {[%clk
0:00:04]} 47... Ne7 {[%clk 0:01:30.4]} 48. h5 {[%clk 0:00:04.1]} 48... Nd5
{[%clk 0:01:29]} 49. hxg6+ {[%clk 0:00:04.5]} 49... hxg6 {[%clk 0:01:30.9]} 50.
Rh1 {[%clk 0:00:05.5]} 50... Kg7 {[%clk 0:01:31.6]} 51. f4 {[%clk 0:00:05.9]}
51... a5 {[%clk 0:01:29.1]} 52. Ne6+ {[%clk 0:00:03.6]} 52... Kf7 {[%clk
0:01:30.1]} 53. Ng5+ {[%clk 0:00:04.1]} 53... Kg8 {[%clk 0:01:30.1]} 54. f5
{[%clk 0:00:03.8]} 54... gxf5+ {[%clk 0:01:27.5]} 55. Kxf5 {[%clk 0:00:05.3]}
55... a4 {[%clk 0:01:28.6]} 56. bxa4 {[%clk 0:00:05.7]} 56... bxa4 {[%clk
0:01:30.5]} 57. Ne4 {[%clk 0:00:05.6]} 57... a3 {[%clk 0:01:21.5]} 58. Kg6
{[%clk 0:00:06.2]} 58... a2 {[%clk 0:01:18]} 59. Ra1 {[%clk 0:00:04.7]} 59...
Kf8 {[%clk 0:01:10.3]} 60. Nf6 {[%clk 0:00:04.6]} 60... Ke7 {[%clk 0:01:08.9]}
61. Ne4 {[%clk 0:00:05.5]} 61... Nb4 {[%clk 0:00:55.4]} 62. Nc3 {[%clk
0:00:05.6]} 62... Ke6 {[%clk 0:00:50.3]} 63. Kg5 {[%clk 0:00:05.7]} 63... Ra3
{[%clk 0:00:49.3]} 64. Ne4 {[%clk 0:00:03.3]} 64... Nc2 {[%clk 0:00:43.6]} 65.
Nc5+ {[%clk 0:00:04.4]} 65... Kd5 {[%clk 0:00:45]} 0-1

[Event "GrandPrix_30.05"]
[Site "Chess.com"]
[Date "2020.05.30"]
[Round "5"]
[White "Matibar"]
[Black "Sanan_Sjugirov"]
[Result "1/2-1/2"]
[WhiteElo "2632"]
[BlackElo "2691"]
[TimeControl "600+2"]
[EndTime "10:28:14 PDT"]
[Termination "Game drawn by repetition"]

1. e4 {[%clk 0:10:01.9]} 1... c5 {[%clk 0:09:58]} 2. Nf3 {[%clk 0:10:02.3]} 2...
d6 {[%clk 0:09:57.8]} 3. d4 {[%clk 0:09:56.2]} 3... cxd4 {[%clk 0:09:58.6]} 4.
Nxd4 {[%clk 0:09:58.1]} 4... Nf6 {[%clk 0:09:59.4]} 5. Nc3 {[%clk 0:09:59.8]}
5... g6 {[%clk 0:09:58.3]} 6. g3 {[%clk 0:09:56.1]} 6... Nc6 {[%clk 0:09:56.2]}
7. Nde2 {[%clk 0:09:56.3]} 7... Bd7 {[%clk 0:09:44.1]} 8. Bg2 {[%clk 0:09:53.8]}
8... Bg7 {[%clk 0:09:36.5]} 9. h3 {[%clk 0:09:50.4]} 9... h5 {[%clk 0:09:09.3]}
10. Be3 {[%clk 0:09:04.5]} 10... Qc8 {[%clk 0:08:39.8]} 11. f4 {[%clk
0:08:55.6]} 11... b5 {[%clk 0:07:11.6]} 12. Qd2 {[%clk 0:07:00]} 12... b4 {[%clk
0:06:40.8]} 13. Nd5 {[%clk 0:06:54.4]} 13... Nxd5 {[%clk 0:06:38.1]} 14. exd5
{[%clk 0:06:54.9]} 14... Na5 {[%clk 0:06:38]} 15. Qxb4 {[%clk 0:06:35.2]} 15...
Nc4 {[%clk 0:06:26.8]} 16. Bd4 {[%clk 0:06:32.4]} 16... Bxd4 {[%clk 0:03:37.5]}
17. Nxd4 {[%clk 0:06:34.3]} 17... Ne3 {[%clk 0:03:33.2]} 18. Be4 {[%clk
0:05:41.1]} 18... f5 {[%clk 0:02:39.4]} 19. Qb3 {[%clk 0:03:04.7]} 19... fxe4
{[%clk 0:01:25]} 20. Qxe3 {[%clk 0:03:03.8]} 20... Qc4 {[%clk 0:01:26.5]} 21.
Qxe4 {[%clk 0:02:26]} 21... Bf5 {[%clk 0:01:26.6]} 22. Qe3 {[%clk 0:02:26.4]}
22... Qxd5 {[%clk 0:01:24.1]} 23. O-O-O {[%clk 0:02:17.2]} 23... Qxa2 {[%clk
0:01:22.2]} 24. Rde1 {[%clk 0:00:40.8]} 24... O-O {[%clk 0:01:02.3]} 25. g4
{[%clk 0:00:39.4]} 25... Qa1+ {[%clk 0:00:49.3]} 26. Kd2 {[%clk 0:00:39.4]}
26... Qa5+ {[%clk 0:00:50.8]} 27. c3 {[%clk 0:00:28]} 27... Rab8 {[%clk
0:00:29.1]} 28. gxf5 {[%clk 0:00:27.4]} 28... Rxb2+ {[%clk 0:00:29.3]} 29. Nc2
{[%clk 0:00:28.7]} 29... Qxf5 {[%clk 0:00:24.2]} 30. Qe6+ {[%clk 0:00:20.3]}
30... Qxe6 {[%clk 0:00:24.2]} 31. Rxe6 {[%clk 0:00:22.2]} 31... Rxf4 {[%clk
0:00:24.2]} 32. Kd3 {[%clk 0:00:11.1]} 32... Kf7 {[%clk 0:00:16.1]} 33. Re2
{[%clk 0:00:08.8]} 33... Rf3+ {[%clk 0:00:11.4]} 34. Ne3 {[%clk 0:00:08.8]}
34... Rb5 {[%clk 0:00:06.8]} 35. Rf1 {[%clk 0:00:09.7]} 35... Rxf1 {[%clk
0:00:06.5]} 36. Nxf1 {[%clk 0:00:11.6]} 36... a5 {[%clk 0:00:06.6]} 37. Ne3
{[%clk 0:00:12.8]} 37... g5 {[%clk 0:00:05.8]} 38. Ra2 {[%clk 0:00:12.7]} 38...
Kg6 {[%clk 0:00:05.6]} 39. c4 {[%clk 0:00:14]} 39... Rb3+ {[%clk 0:00:05.4]} 40.
Ke4 {[%clk 0:00:14.2]} 40... Rb1 {[%clk 0:00:03.1]} 41. Rxa5 {[%clk 0:00:13.6]}
41... Rh1 {[%clk 0:00:04.1]} 42. Ra7 {[%clk 0:00:13.4]} 42... Rxh3 {[%clk
0:00:04.6]} 43. Rxe7 {[%clk 0:00:14.5]} 43... Rh4+ {[%clk 0:00:05]} 44. Kd5
{[%clk 0:00:14.8]} 44... Rf4 {[%clk 0:00:05.3]} 45. Re6+ {[%clk 0:00:15.5]}
45... Kg7 {[%clk 0:00:06]} 46. Kxd6 {[%clk 0:00:16.1]} 46... h4 {[%clk
0:00:06.9]} 47. c5 {[%clk 0:00:17.4]} 47... h3 {[%clk 0:00:07.9]} 48. Nd5 {[%clk
0:00:17.8]} 48... Rf1 {[%clk 0:00:07.3]} 49. Re2 {[%clk 0:00:12.9]} 49... g4
{[%clk 0:00:08.4]} 50. c6 {[%clk 0:00:14.2]} 50... g3 {[%clk 0:00:08.7]} 51. c7
{[%clk 0:00:14.8]} 51... Rc1 {[%clk 0:00:07.9]} 52. Re3 {[%clk 0:00:10.4]} 52...
g2 {[%clk 0:00:08.5]} 53. Rg3+ {[%clk 0:00:11.2]} 53... Kf7 {[%clk 0:00:08.9]}
54. Rf3+ {[%clk 0:00:10.8]} 54... Kg7 {[%clk 0:00:08.8]} 55. Rg3+ {[%clk
0:00:12]} 55... Kf7 {[%clk 0:00:10.2]} 56. Rf3+ {[%clk 0:00:09.8]} 56... Kg7
{[%clk 0:00:10.6]} 57. Rg3+ {[%clk 0:00:11.2]} 1/2-1/2

[Event "GrandPrix_30.05"]
[Site "Chess.com"]
[Date "2020.05.30"]
[Round "5"]
[White "Anton_Demchenko"]
[Black "GadimbayliA"]
[Result "0-1"]
[WhiteElo "2614"]
[BlackElo "2559"]
[TimeControl "600+2"]
[EndTime "10:28:18 PDT"]
[Termination "GadimbayliA won by checkmate"]

1. d4 {[%clk 0:10:01.9]} 1... d5 {[%clk 0:10:01]} 2. Nf3 {[%clk 0:10:00.2]} 2...
Nc6 {[%clk 0:10:01.7]} 3. c4 {[%clk 0:09:55.4]} 3... Bg4 {[%clk 0:10:00.3]} 4.
cxd5 {[%clk 0:09:51.4]} 4... Bxf3 {[%clk 0:10:01.5]} 5. gxf3 {[%clk 0:09:51.8]}
5... Qxd5 {[%clk 0:10:02.5]} 6. e3 {[%clk 0:09:50]} 6... e6 {[%clk 0:10:03.8]}
7. Nc3 {[%clk 0:09:50.1]} 7... Qd7 {[%clk 0:10:04.9]} 8. f4 {[%clk 0:09:42.8]}
8... Nf6 {[%clk 0:10:04.1]} 9. Bg2 {[%clk 0:09:43.2]} 9... g6 {[%clk 0:09:21.6]}
10. O-O {[%clk 0:09:36.4]} 10... Bg7 {[%clk 0:09:22.1]} 11. Bd2 {[%clk
0:09:34.6]} 11... O-O {[%clk 0:09:21.5]} 12. Rc1 {[%clk 0:09:34.9]} 12... Ne7
{[%clk 0:09:08.9]} 13. Na4 {[%clk 0:07:47]} 13... c6 {[%clk 0:09:07.5]} 14. Bb4
{[%clk 0:07:41.5]} 14... Rfe8 {[%clk 0:08:58.8]} 15. Bxe7 {[%clk 0:07:40.6]}
15... Qxe7 {[%clk 0:08:56.3]} 16. Nc5 {[%clk 0:07:38.7]} 16... Nd5 {[%clk
0:08:09.8]} 17. Qg4 {[%clk 0:07:13.5]} 17... Rad8 {[%clk 0:07:56.7]} 18. a3
{[%clk 0:07:07.8]} 18... h5 {[%clk 0:07:42.3]} 19. Qf3 {[%clk 0:07:06.6]} 19...
b6 {[%clk 0:07:16.4]} 20. Nd3 {[%clk 0:06:47.8]} 20... c5 {[%clk 0:06:33.3]} 21.
dxc5 {[%clk 0:06:44.8]} 21... bxc5 {[%clk 0:06:35.2]} 22. Rfd1 {[%clk
0:05:16.5]} 22... Nb6 {[%clk 0:05:28.5]} 23. Qe4 {[%clk 0:05:16.9]} 23... Rd7
{[%clk 0:04:28.9]} 24. Ne5 {[%clk 0:04:57.3]} 24... Rxd1+ {[%clk 0:04:09.3]} 25.
Rxd1 {[%clk 0:04:59.2]} 25... Rd8 {[%clk 0:03:33.4]} 26. Rc1 {[%clk 0:02:39.7]}
26... Rd2 {[%clk 0:03:24.6]} 27. b3 {[%clk 0:02:41]} 27... Qd6 {[%clk 0:02:50]}
28. Bf3 {[%clk 0:01:53.6]} 28... Rxf2 {[%clk 0:02:08.9]} 29. Kxf2 {[%clk
0:00:30.3]} 29... Qd2+ {[%clk 0:02:09.2]} 30. Be2 {[%clk 0:00:31.8]} 30... Qxc1
{[%clk 0:02:10.2]} 31. Nc4 {[%clk 0:00:27.9]} 31... Nd5 {[%clk 0:01:56.2]} 32.
Qd3 {[%clk 0:00:22.5]} 32... Qh1 {[%clk 0:01:49.6]} 33. Kg3 {[%clk 0:00:16.3]}
33... h4+ {[%clk 0:01:19.3]} 34. Kh3 {[%clk 0:00:15]} 34... Bh6 {[%clk 0:00:53]}
35. Qd2 {[%clk 0:00:14.6]} 35... Qe4 {[%clk 0:00:26.4]} 36. Bg4 {[%clk
0:00:14.6]} 36... f5 {[%clk 0:00:18.4]} 37. Bd1 {[%clk 0:00:15.6]} 37... g5
{[%clk 0:00:13.7]} 38. Nd6 {[%clk 0:00:10.2]} 38... Qxe3+ {[%clk 0:00:06]} 39.
Qxe3 {[%clk 0:00:10.3]} 39... Nxe3 {[%clk 0:00:07.9]} 40. fxg5 {[%clk
0:00:08.6]} 40... Bf8 {[%clk 0:00:08.5]} 41. Nc8 {[%clk 0:00:04.7]} 41... Nxd1
{[%clk 0:00:08.8]} 42. Nxa7 {[%clk 0:00:06.1]} 42... c4 {[%clk 0:00:06.2]} 43.
bxc4 {[%clk 0:00:06.9]} 43... Bxa3 {[%clk 0:00:07.6]} 44. Kxh4 {[%clk
0:00:06.4]} 44... Ne3 {[%clk 0:00:08.9]} 45. Nb5 {[%clk 0:00:06]} 45... Bc5
{[%clk 0:00:06.7]} 46. Nc7 {[%clk 0:00:07.3]} 46... Kf7 {[%clk 0:00:04]} 47. Na6
{[%clk 0:00:04.3]} 47... Be7 {[%clk 0:00:04.2]} 48. c5 {[%clk 0:00:05.9]} 48...
Nd5 {[%clk 0:00:05]} 49. c6 {[%clk 0:00:07.4]} 49... Bd6 {[%clk 0:00:04.8]} 50.
Kh5 {[%clk 0:00:09]} 50... Kg7 {[%clk 0:00:04.1]} 51. h3 {[%clk 0:00:06.3]}
51... Nf4+ {[%clk 0:00:04.3]} 52. Kh4 {[%clk 0:00:07.8]} 52... Ng6+ {[%clk
0:00:05.7]} 53. Kh5 {[%clk 0:00:09]} 53... Nf4+ {[%clk 0:00:07.2]} 54. Kh4
{[%clk 0:00:10.4]} 54... Nd5 {[%clk 0:00:08.7]} 55. Kh5 {[%clk 0:00:11.3]} 55...
Kh7 {[%clk 0:00:08.1]} 56. g6+ {[%clk 0:00:05.5]} 56... Kg7 {[%clk 0:00:09.4]}
57. Kg5 {[%clk 0:00:07.4]} 57... Be7+ {[%clk 0:00:09.2]} 58. Kh5 {[%clk
0:00:08.6]} 58... Nf4# {[%clk 0:00:10.6]} 0-1

[Event "GrandPrix_30.05"]
[Site "Chess.com"]
[Date "2020.05.30"]
[Round "5"]
[White "arminmusovic"]
[Black "GM_dmitrij"]
[Result "1/2-1/2"]
[WhiteElo "2281"]
[BlackElo "2449"]
[TimeControl "600+2"]
[EndTime "10:28:18 PDT"]
[Termination "Game drawn by repetition"]

1. a3 {[%clk 0:10:01.9]} 1... e5 {[%clk 0:09:56.6]} 2. Nc3 {[%clk 0:10:02.5]}
2... Nf6 {[%clk 0:09:53]} 3. d4 {[%clk 0:10:03.7]} 3... e4 {[%clk 0:09:45.9]} 4.
Bg5 {[%clk 0:10:04.3]} 4... d5 {[%clk 0:09:34]} 5. Bxf6 {[%clk 0:10:04.3]} 5...
gxf6 {[%clk 0:09:35.9]} 6. e3 {[%clk 0:10:05.3]} 6... Be6 {[%clk 0:09:29.6]} 7.
Nh3 {[%clk 0:09:52.4]} 7... Bxh3 {[%clk 0:09:16]} 8. gxh3 {[%clk 0:09:53.2]}
8... c6 {[%clk 0:09:13.9]} 9. Qh5 {[%clk 0:09:34]} 9... Nd7 {[%clk 0:09:08.6]}
10. h4 {[%clk 0:09:14]} 10... Bd6 {[%clk 0:08:42.6]} 11. Bh3 {[%clk 0:09:10.1]}
11... Qe7 {[%clk 0:08:43.4]} 12. O-O-O {[%clk 0:08:58]} 12... O-O-O {[%clk
0:08:43.7]} 13. Kb1 {[%clk 0:08:37.6]} 13... Kb8 {[%clk 0:08:43.4]} 14. Bxd7
{[%clk 0:08:36.4]} 14... Qxd7 {[%clk 0:08:44.7]} 15. f3 {[%clk 0:08:06.3]} 15...
f5 {[%clk 0:08:37.3]} 16. fxe4 {[%clk 0:08:06.5]} 16... fxe4 {[%clk 0:08:37.4]}
17. Rdf1 {[%clk 0:08:03.6]} 17... Qh3 {[%clk 0:07:47.4]} 18. Nd1 {[%clk
0:07:37]} 18... Rdf8 {[%clk 0:07:30.5]} 19. Qh6 {[%clk 0:04:47.5]} 19... Bc7
{[%clk 0:05:58.7]} 20. Rf6 {[%clk 0:04:34.2]} 20... Bd8 {[%clk 0:05:42.8]} 21.
Rf4 {[%clk 0:04:13.1]} 21... Qe6 {[%clk 0:05:19.6]} 22. Qg7 {[%clk 0:04:07.6]}
22... Qg6 {[%clk 0:04:12.3]} 23. Rg1 {[%clk 0:03:26.2]} 23... Qxg7 {[%clk
0:04:13.2]} 24. Rxg7 {[%clk 0:03:28.1]} 24... f5 {[%clk 0:04:15]} 25. h5 {[%clk
0:03:23.8]} 25... Bc7 {[%clk 0:04:09.4]} 26. Rf2 {[%clk 0:03:13.7]} 26... f4
{[%clk 0:03:44.1]} 27. exf4 {[%clk 0:03:06.1]} 27... Rxf4 {[%clk 0:03:46]} 28.
h6 {[%clk 0:02:35.1]} 28... e3 {[%clk 0:02:14.1]} 29. Rfg2 {[%clk 0:02:36.3]}
29... Rf1 {[%clk 0:01:30.6]} 30. Ka2 {[%clk 0:02:32]} 30... Rxd1 {[%clk
0:00:54.3]} 31. Rg8+ {[%clk 0:02:32.5]} 31... Rxg8 {[%clk 0:00:55.8]} 32. Rxg8+
{[%clk 0:02:34.3]} 32... Bd8 {[%clk 0:00:57.7]} 33. Rxd8+ {[%clk 0:02:35.7]}
33... Kc7 {[%clk 0:00:59.3]} 34. Re8 {[%clk 0:02:33.1]} 34... Rxd4 {[%clk
0:00:58.3]} 35. Rxe3 {[%clk 0:02:12.6]} 35... Kd6 {[%clk 0:00:59.3]} 36. Rg3
{[%clk 0:01:55.8]} 36... Rh4 {[%clk 0:00:54.5]} 37. Rg7 {[%clk 0:01:54.8]} 37...
Rxh6 {[%clk 0:00:55.7]} 38. Rxb7 {[%clk 0:01:54.4]} 38... a5 {[%clk 0:00:48]}
39. Ra7 {[%clk 0:01:50.1]} 39... Rxh2 {[%clk 0:00:46]} 40. c3 {[%clk 0:01:45.6]}
40... h5 {[%clk 0:00:14.1]} 41. Rxa5 {[%clk 0:01:45.8]} 41... h4 {[%clk
0:00:16]} 42. Ra8 {[%clk 0:01:39.7]} 42... h3 {[%clk 0:00:14.3]} 43. a4 {[%clk
0:01:34.6]} 43... Rg2 {[%clk 0:00:11.9]} 44. Rh8 {[%clk 0:01:29.8]} 44... h2
{[%clk 0:00:13.7]} 45. Ka3 {[%clk 0:01:15.2]} 45... Kc5 {[%clk 0:00:14]} 46. Rh4
{[%clk 0:01:08.8]} 46... Re2 {[%clk 0:00:10.4]} 47. b4+ {[%clk 0:01:07]} 47...
Kb6 {[%clk 0:00:09.4]} 48. Kb3 {[%clk 0:01:02.3]} 48... Rd2 {[%clk 0:00:09.9]}
49. a5+ {[%clk 0:00:54.1]} 49... Kb5 {[%clk 0:00:11.8]} 50. Rh5 {[%clk
0:00:55.4]} 50... c5 {[%clk 0:00:08.6]} 51. bxc5 {[%clk 0:00:48.9]} 51... Kxa5
{[%clk 0:00:10.5]} 52. c6 {[%clk 0:00:26.6]} 52... Kb6 {[%clk 0:00:10.6]} 53.
Rh6 {[%clk 0:00:23.7]} 53... Re2 {[%clk 0:00:11]} 54. Kb4 {[%clk 0:00:10.6]}
54... Rb2+ {[%clk 0:00:11]} 55. Ka3 {[%clk 0:00:11.3]} 55... Rg2 {[%clk
0:00:11.7]} 56. Kb4 {[%clk 0:00:11.5]} 56... Rd2 {[%clk 0:00:09.8]} 57. Kb3
{[%clk 0:00:11.9]} 57... Re2 {[%clk 0:00:06.4]} 58. Ka3 {[%clk 0:00:11.2]} 58...
Rg2 {[%clk 0:00:06.9]} 59. Kb3 {[%clk 0:00:12.1]} 59... Rf2 {[%clk 0:00:06.8]}
60. Ka3 {[%clk 0:00:13.3]} 60... Rg2 {[%clk 0:00:08.2]} 1/2-1/2

[Event "GrandPrix_30.05"]
[Site "Chess.com"]
[Date "2020.05.30"]
[Round "5"]
[White "Tyoma88888"]
[Black "2346PL"]
[Result "0-1"]
[WhiteElo "2086"]
[BlackElo "2086"]
[TimeControl "600+2"]
[EndTime "10:28:20 PDT"]
[Termination "2346PL won by resignation"]

1. e4 {[%clk 0:10:01.9]} 1... c5 {[%clk 0:10:00.7]} 2. Nc3 {[%clk 0:10:02.7]}
2... e6 {[%clk 0:09:59.6]} 3. Nge2 {[%clk 0:10:03]} 3... d5 {[%clk 0:09:51.4]}
4. exd5 {[%clk 0:10:04.9]} 4... exd5 {[%clk 0:09:53.3]} 5. d4 {[%clk 0:10:06.3]}
5... c4 {[%clk 0:09:51.8]} 6. g3 {[%clk 0:10:07]} 6... Nf6 {[%clk 0:09:48.2]} 7.
Bg2 {[%clk 0:10:07.8]} 7... h6 {[%clk 0:09:48.2]} 8. O-O {[%clk 0:10:08.6]} 8...
Bb4 {[%clk 0:09:41.8]} 9. Nf4 {[%clk 0:10:05.1]} 9... Bxc3 {[%clk 0:09:39.1]}
10. bxc3 {[%clk 0:10:07]} 10... O-O {[%clk 0:09:40.3]} 11. Nh5 {[%clk
0:09:53.8]} 11... Be6 {[%clk 0:09:36.1]} 12. Rb1 {[%clk 0:09:45.4]} 12... b6
{[%clk 0:09:32.6]} 13. Qf3 {[%clk 0:09:34.5]} 13... Nbd7 {[%clk 0:09:24]} 14.
Nxf6+ {[%clk 0:09:14.2]} 14... Nxf6 {[%clk 0:09:14.9]} 15. h3 {[%clk 0:09:15.1]}
15... Re8 {[%clk 0:08:59]} 16. Re1 {[%clk 0:09:14.8]} 16... Ne4 {[%clk
0:08:55.4]} 17. Bf4 {[%clk 0:09:10.7]} 17... Qf6 {[%clk 0:07:51.9]} 18. Qe3
{[%clk 0:08:51.5]} 18... Bf5 {[%clk 0:06:10.2]} 19. Be5 {[%clk 0:08:49.4]} 19...
Qc6 {[%clk 0:06:01.5]} 20. g4 {[%clk 0:08:41.2]} 20... Bg6 {[%clk 0:06:00.3]}
21. Qf3 {[%clk 0:07:30.8]} 21... Nd2 {[%clk 0:05:00.8]} 22. Qxd5 {[%clk
0:07:24.3]} 22... Qxd5 {[%clk 0:05:01.7]} 23. Bxd5 {[%clk 0:07:26.2]} 23... Rad8
{[%clk 0:04:54.7]} 24. Bc6 {[%clk 0:06:48]} 24... Re6 {[%clk 0:03:42.2]} 25.
Rbd1 {[%clk 0:06:33.5]} 25... Rxc6 {[%clk 0:02:55.2]} 26. Rxd2 {[%clk
0:06:33.1]} 26... Rd5 {[%clk 0:02:51.1]} 27. Bg3 {[%clk 0:06:14.2]} 27... Re6
{[%clk 0:02:45.9]} 28. f4 {[%clk 0:06:03.5]} 28... Rxe1+ {[%clk 0:02:40.6]} 29.
Bxe1 {[%clk 0:06:05.4]} 29... Be4 {[%clk 0:02:42]} 30. Re2 {[%clk 0:05:59.6]}
30... f5 {[%clk 0:02:42.6]} 31. gxf5 {[%clk 0:05:59.2]} 31... Bxf5 {[%clk
0:02:43.1]} 32. Re5 {[%clk 0:06:00.3]} 32... Rxe5 {[%clk 0:02:36.5]} 33. dxe5
{[%clk 0:05:40.1]} 33... Bxh3 {[%clk 0:02:35.3]} 34. Kf2 {[%clk 0:05:41.5]}
34... Kf7 {[%clk 0:02:03.4]} 35. Ke3 {[%clk 0:05:42.2]} 35... Ke6 {[%clk
0:02:03.1]} 36. Kd4 {[%clk 0:05:43.4]} 36... Kf5 {[%clk 0:02:00.3]} 37. Bd2
{[%clk 0:05:37.8]} 37... Bg2 {[%clk 0:01:54.3]} 38. Kxc4 {[%clk 0:05:36.9]}
38... h5 {[%clk 0:01:53.3]} 39. Kd4 {[%clk 0:05:09.5]} 39... h4 {[%clk
0:01:49.1]} 40. Be1 {[%clk 0:05:10.2]} 40... Kg4 {[%clk 0:01:44]} 41. Bxh4
{[%clk 0:01:48.8]} 41... Kxh4 {[%clk 0:01:45.9]} 42. f5 {[%clk 0:01:50.7]} 42...
Kg5 {[%clk 0:01:42.9]} 43. f6 {[%clk 0:01:52]} 43... gxf6 {[%clk 0:01:43.2]} 44.
exf6 {[%clk 0:01:53.9]} 44... Kxf6 {[%clk 0:01:43.9]} 45. c4 {[%clk 0:01:52]}
45... Bc6 {[%clk 0:00:50.4]} 46. c5 {[%clk 0:01:42.2]} 46... Ke6 {[%clk
0:00:50.9]} 47. c4 {[%clk 0:01:40.1]} 47... Ba4 {[%clk 0:00:35.6]} 48. a3 {[%clk
0:00:50.3]} 48... Kd7 {[%clk 0:00:35.6]} 49. Kd5 {[%clk 0:00:42.9]} 49... Kc7
{[%clk 0:00:36.7]} 50. cxb6+ {[%clk 0:00:25.9]} 50... axb6 {[%clk 0:00:38.6]}
51. c5 {[%clk 0:00:27.8]} 51... b5 {[%clk 0:00:39.3]} 52. c6 {[%clk 0:00:29.3]}
52... Kb6 {[%clk 0:00:19.8]} 53. Kd6 {[%clk 0:00:28.9]} 53... Bd1 {[%clk
0:00:19.7]} 54. c7 {[%clk 0:00:15.4]} 54... Bg4 {[%clk 0:00:20.5]} 55. Kd5
{[%clk 0:00:16.8]} 55... Bc8 {[%clk 0:00:17.9]} 56. Kd4 {[%clk 0:00:09.8]} 56...
Ka5 {[%clk 0:00:18.9]} 57. Kc3 {[%clk 0:00:07.3]} 57... Ka4 {[%clk 0:00:20.2]}
58. Kb2 {[%clk 0:00:07.9]} 58... Be6 {[%clk 0:00:21.2]} 59. c8=Q {[%clk
0:00:03.3]} 59... Bxc8 {[%clk 0:00:21.8]} 60. Ka2 {[%clk 0:00:05.2]} 60... Be6+
{[%clk 0:00:22.7]} 61. Kb2 {[%clk 0:00:07.1]} 61... Bd5 {[%clk 0:00:24.5]} 62.
Kc3 {[%clk 0:00:08.1]} 62... Kxa3 {[%clk 0:00:25.5]} 0-1